fUST/lending_fUST_20240822
["ID","MTS","AMOUNT","RATE_DAILY","PERIOD"]
[335513766,1724296254423,-500.0,0.00020594,7]
[335513767,1724296254432,-500.0,0.00020594,7]
[335513769,1724296254442,-500.0,0.00020594,7]
[335513771,1724296254451,-214.89514497,0.00020594,7]
[335513773,1724296254461,-500.0,0.00020594,7]
[335513776,1724296254471,-500.0,0.00020594,7]
[335513777,1724296254480,-500.0,0.00020594,7]
[335513779,1724296254490,-1340.95,0.00020594,7]
[335513781,1724296254500,-500.0,0.00020594,7]
[335513783,1724296254509,-500.0,0.00020594,7]
[335513785,1724296254519,-503.28674946,0.00020594,7]
[335513787,1724296254528,-2046.47,0.00020594,7]
[335513789,1724296254538,-1000.0,0.00020594,7]
[335513791,1724296254548,-500.0,0.00020594,7]
[335513794,1724296254558,-500.0,0.00020594,7]
[335513795,1724296254567,-500.0,0.00020594,7]
[335513797,1724296254577,-502.31055982,0.00020594,7]
[335513799,1724296254586,-1120.11,0.00020594,7]
[335513801,1724296254595,-1551.13,0.00020594,7]
[335513803,1724296254605,-500.0,0.00020594,7]
[335513805,1724296254616,-500.0,0.00020594,7]
[335513807,1724296254625,-500.0,0.00020594,7]
[335513810,1724296254635,-500.0,0.00020594,7]
[335513812,1724296254648,-253.66730772,0.00020594,7]
[335513814,1724296254658,-500.0,0.00020594,7]
[335513816,1724296254672,-500.0,0.00020594,7]
[335513819,1724296254683,-500.0,0.00020594,7]
[335513821,1724296254693,-500.0,0.00020594,7]
[335513823,1724296254703,-500.0,0.00020594,7]
[335513825,1724296254714,-500.0,0.00020594,7]
[335513827,1724296254726,-500.0,0.00020594,7]
[335513830,1724296254737,-500.0,0.00020594,7]
[335513832,1724296254747,-500.0,0.00020594,7]
[335513834,1724296254757,-500.0,0.00020594,7]
[335513836,1724296254768,-2581.03,0.00020594,7]
[335513838,1724296254778,-500.0,0.00020594,7]
[335513840,1724296254789,-500.0,0.00020594,7]
[335513842,1724296254800,-500.0,0.00020594,7]
[335513844,1724296254810,-500.0,0.00020594,7]
[335513847,1724296254823,-500.0,0.00020594,7]
[335513849,1724296254832,-2835.16,0.00020594,7]
[335513851,1724296254843,-500.0,0.00020594,7]
[335513853,1724296254854,-500.0,0.00020594,7]
[335513855,1724296254864,-3903.17,0.00020594,7]
[335513857,1724296254873,-500.0,0.00020594,7]
[335513859,1724296254883,-500.0,0.00020594,7]
[335513861,1724296254893,-533.96861746,0.00020594,7]
[335513863,1724296254903,-500.0,0.00020594,7]
[335513865,1724296254913,-500.0,0.00020594,7]
[335513867,1724296254923,-549.21,0.00020594,7]
[335513869,1724296254933,-500.0,0.00020594,7]
[335513871,1724296254943,-500.0,0.00020594,7]
[335513873,1724296254952,-500.0,0.00020594,7]
[335513875,1724296254963,-500.0,0.00020594,7]
[335513878,1724296254973,-500.0,0.00020594,7]
[335513880,1724296254983,-500.0,0.00020594,7]
[335513882,1724296254993,-500.0,0.00020594,7]
[335513884,1724296255003,-389.85009127,0.00020594,7]
[335513886,1724296255013,-500.0,0.00020594,7]
[335513888,1724296255022,-500.0,0.00020594,7]
[335513890,1724296255032,-500.0,0.00020594,7]
[335513892,1724296255041,-500.0,0.00020594,7]
[335513894,1724296255050,-500.0,0.00020594,7]
[335513896,1724296255060,-500.0,0.00020594,7]
[335513898,1724296255073,-690.99,0.00020594,7]
[335513900,1724296255083,-500.0,0.00020594,7]
[335513902,1724296255092,-909.85,0.00020594,7]
[335513904,1724296255102,-500.0,0.00020594,7]
[335513906,1724296255114,-500.0,0.00020594,7]
[335513908,1724296255124,-500.0,0.00020594,7]
[335513910,1724296255137,-13330.48,0.00020594,7]
[335513913,1724296255149,-500.0,0.00020594,7]
[335513915,1724296255160,-500.0,0.00020594,7]
[335513917,1724296255169,-500.0,0.00020594,7]
[335513919,1724296255179,-500.0,0.00020594,7]
[335513921,1724296255189,-678.69,0.00020594,7]
[335513923,1724296255201,-500.0,0.00020594,7]
[335513925,1724296255213,-500.0,0.00020594,7]
[335513927,1724296255223,-1250.39,0.00020594,7]
[335513929,1724296255233,-500.0,0.00020594,7]
[335513931,1724296255242,-6126.91,0.00020594,7]
[335513933,1724296255252,-500.0,0.00020594,7]
[335513935,1724296255261,-553.67543155,0.00020594,7]
[335513937,1724296255271,-500.0,0.00020594,7]
[335513940,1724296255280,-500.0,0.00020594,7]
[335513942,1724296255290,-3045.82,0.00020594,7]
[335513944,1724296255299,-500.0,0.00020594,7]
[335513946,1724296255309,-500.0,0.00020594,7]
[335513948,1724296255318,-500.0,0.00020594,7]
[335513949,1724296255327,-500.0,0.00020594,7]
[335513950,1724296255337,-652.97,0.00020594,7]
[335513951,1724296255347,-500.0,0.00020594,7]
[335513952,1724296255356,-500.0,0.00020594,7]
[335513953,1724296255366,-500.0,0.00020594,7]
[335513954,1724296255375,-519.01,0.00020594,7]
[335513955,1724296255388,-500.0,0.00020594,7]
[335513957,1724296255408,-500.0,0.00020594,7]
[335513959,1724296255418,-500.0,0.00020594,7]
[335513961,1724296255428,-500.0,0.00020594,7]
[335513963,1724296255437,-612.93,0.00020594,7]
[335513965,1724296255449,-517.08156053,0.00020594,7]
[335513967,1724296255458,-500.0,0.00020594,7]
[335513969,1724296255468,-1677.78,0.00020594,7]
[335513971,1724296255479,-500.0,0.00020594,7]
[335513973,1724296255488,-500.0,0.00020594,7]
[335513975,1724296255498,-519.73942135,0.00020594,7]
[335513977,1724296255508,-961.28,0.00020594,7]
[335513979,1724296255518,-500.0,0.00020594,7]
[335513981,1724296255527,-500.0,0.00020594,7]
[335513983,1724296255537,-500.0,0.00020594,7]
[335513985,1724296255547,-500.0,0.00020594,7]
[335513987,1724296255556,-502.96837325,0.00020594,7]
[335513989,1724296255566,-1936.23,0.00020594,7]
[335513991,1724296255576,-507.86502743,0.00020594,7]
[335513993,1724296255586,-500.0,0.00020594,7]
[335513995,1724296255596,-500.0,0.00020594,7]
[335513997,1724296255605,-500.0,0.00020594,7]
[335513999,1724296255615,-500.0,0.00020594,7]
[335514001,1724296255625,-408.89532072,0.00020594,7]
[335514003,1724296255635,-328.68082803,0.00020594,7]
[335514005,1724296255648,-500.0,0.00020594,7]
[335514007,1724296255658,-500.0,0.00020594,7]
[335514009,1724296255668,-500.0,0.00020594,7]
[335514011,1724296255678,-500.0,0.00020594,7]
[335514013,1724296255688,-500.0,0.00020594,7]
[335514015,1724296255698,-500.0,0.00020594,7]
[335514017,1724296255707,-500.0,0.00020594,7]
[335514019,1724296255717,-557.92,0.00020594,7]
[335514021,1724296255727,-500.0,0.00020594,7]
[335514023,1724296255737,-500.0,0.00020594,7]
[335514025,1724296255747,-500.0,0.00020594,7]
[335514027,1724296255756,-500.0,0.00020594,7]
[335514029,1724296255766,-747.25,0.00020594,7]
[335514031,1724296255776,-500.0,0.00020594,7]
[335514033,1724296255785,-500.0,0.00020594,7]
[335514035,1724296255795,-500.0,0.00020594,7]
[335514037,1724296255806,-500.0,0.00020594,7]
[335514039,1724296255816,-500.0,0.00020594,7]
[335514042,1724296255826,-500.0,0.00020594,7]
[335514044,1724296255836,-500.0,0.00020594,7]
[335514046,1724296255846,-500.0,0.00020594,7]
[335514048,1724296255856,-500.0,0.00020594,7]
[335514050,1724296255866,-500.0,0.00020594,2]
[335514052,1724296255876,-500.0,0.00020594,7]
[335514054,1724296255886,-500.0,0.00020594,7]
[335514056,1724296255899,-500.0,0.00020594,7]
[335514058,1724296255909,-500.0,0.00020594,7]
[335514060,1724296255918,-772.91,0.00020594,7]
[335514062,1724296255928,-500.0,0.00020594,7]
[335514064,1724296255938,-500.0,0.00020594,7]
[335514066,1724296255947,-500.0,0.00020594,7]
[335514068,1724296255957,-500.0,0.00020594,7]
[335514071,1724296255968,-500.0,0.00020594,7]
[335514073,1724296255978,-500.0,0.00020594,7]
[335514075,1724296255987,-580.65,0.00020594,7]
[335514077,1724296255997,-500.0,0.00020594,7]
[335514079,1724296256007,-1182.79,0.00020594,7]
[335514081,1724296256018,-500.0,0.00020594,7]
[335514083,1724296256028,-500.0,0.00020594,7]
[335514085,1724296256039,-500.0,0.00020594,7]
[335514087,1724296256049,-500.0,0.00020594,7]
[335514089,1724296256059,-595.53,0.00020594,7]
[335514092,1724296256081,-500.0,0.00020595,7]
[335514094,1724296256092,-1296.4,0.00020595,7]
[335514096,1724296256102,-500.0,0.00020595,7]
[335514099,1724296256114,-500.0,0.00020595,7]
[335514101,1724296256124,-500.0,0.00020595,7]
[335514103,1724296256135,-500.0,0.00020595,7]
[335514105,1724296256147,-500.0,0.00020595,7]
[335514107,1724296256158,-1007.59,0.00020595,7]
[335514109,1724296256168,-150.11224,0.000206,5]
[335514111,1724296256178,-704.15555149,0.00020621,2]
[335514114,1724296256189,-1000.0,0.00020621,2]
[335514116,1724296256200,-1674.77764797,0.00020653,2]
[335514118,1724296256211,-304.09934,0.00020707,2]
[335514120,1724296256221,-156.838081,0.000208,5]
[335514122,1724296256231,-945.59,0.00020836,7]
[335514124,1724296256240,-945.59,0.00020836,7]
[335514126,1724296256250,-500.0,0.00020846,7]
[335514128,1724296256261,-500.0,0.00020846,7]
[335514130,1724296256271,-500.0,0.00020846,7]
[335514133,1724296256282,-512.48,0.00020846,7]
[335514135,1724296256294,-500.0,0.00020846,7]
[335514137,1724296256304,-500.0,0.00020846,2]
[335514139,1724296256314,-500.0,0.00020846,7]
[335514141,1724296256325,-500.0,0.00020846,7]
[335514143,1724296256335,-500.0,0.00020846,7]
[335514145,1724296256345,-500.0,0.00020846,7]
[335514147,1724296256356,-500.0,0.00020846,7]
[335514150,1724296256367,-500.0,0.00020846,7]
[335514152,1724296256377,-500.0,0.00020846,7]
[335514154,1724296256387,-500.0,0.00020846,7]
[335514156,1724296256399,-639.35,0.00020846,7]
[335514158,1724296256409,-500.0,0.00020846,7]
[335514160,1724296256418,-508.06096094,0.00020846,7]
[335514162,1724296256429,-500.0,0.00020846,7]
[335514164,1724296256438,-500.0,0.00020846,7]
[335514166,1724296256448,-500.0,0.00020846,7]
[335514168,1724296256459,-500.0,0.00020846,7]
[335514170,1724296256469,-500.0,0.00020846,7]
[335514172,1724296256479,-500.0,0.00020846,7]
[335514175,1724296256489,-155.14020528,0.00020846,7]
[335514177,1724296256499,-500.0,0.00020846,7]
[335514179,1724296256509,-500.0,0.00020846,7]
[335514181,1724296256525,-500.0,0.00020846,7]
[335514183,1724296256535,-500.0,0.00020846,7]
[335514184,1724296256546,-500.0,0.00020846,7]
[335514185,1724296256556,-500.0,0.00020846,7]
[335514186,1724296256566,-500.0,0.00020846,7]
[335514187,1724296256576,-500.0,0.00020846,7]
[335514188,1724296256585,-500.0,0.00020846,7]
[335514189,1724296256595,-500.0,0.00020846,7]
[335514191,1724296256606,-500.0,0.00020846,7]
[335514193,1724296256618,-500.0,0.00020846,7]
[335514195,1724296256627,-500.0,0.00020846,7]
[335514197,1724296256638,-500.0,0.00020846,7]
[335514199,1724296256652,-500.0,0.00020846,7]
[335514201,1724296256662,-500.0,0.00020846,7]
[335514203,1724296256672,-500.0,0.00020846,7]
[335514206,1724296256682,-500.0,0.00020846,7]
[335514208,1724296256692,-500.0,0.00020846,7]
[335514210,1724296256703,-500.0,0.00020846,7]
[335514212,1724296256714,-500.0,0.00020846,7]
[335514214,1724296256725,-545.27,0.00020846,7]
[335514216,1724296256735,-500.0,0.00020846,7]
[335514218,1724296256745,-500.0,0.00020846,7]
[335514220,1724296256755,-500.0,0.00020846,7]
[335514222,1724296256766,-500.0,0.00020846,7]
[335514224,1724296256776,-500.0,0.00020846,7]
[335514226,1724296256786,-500.0,0.00020846,7]
[335514228,1724296256797,-500.0,0.00020846,7]
[335514230,1724296256807,-500.0,0.00020846,7]
[335514233,1724296256818,-500.0,0.00020846,7]
[335514235,1724296256827,-500.0,0.00020846,7]
[335514237,1724296256838,-500.0,0.00020846,7]
[335514239,1724296256848,-500.0,0.00020846,7]
[335514241,1724296256859,-500.0,0.00020846,7]
[335514243,1724296256870,-500.0,0.00020846,7]
[335514245,1724296256881,-500.0,0.00020846,7]
[335514247,1724296256891,-500.0,0.00020846,7]
[335514249,1724296256902,-500.0,0.00020846,7]
[335514251,1724296256912,-500.0,0.00020846,7]
[335514254,1724296256923,-500.0,0.00020846,7]
[335514256,1724296256934,-500.0,0.00020846,7]
[335514258,1724296256944,-945.59,0.00020846,7]
[335514260,1724296256955,-945.59,0.00020846,7]
[335514262,1724296256966,-500.0,0.00020846,7]
[335514264,1724296256978,-500.0,0.00020846,7]
[335514266,1724296256988,-500.0,0.00020846,7]
[335514268,1724296256999,-500.0,0.00020846,7]
[335514271,1724296257010,-500.0,0.00020846,7]
[335514273,1724296257020,-633.96333067,0.00020846,7]
[335514275,1724296257030,-500.0,0.00020846,7]
[335514277,1724296257040,-500.0,0.00020846,7]
[335514279,1724296257050,-500.0,0.00020846,7]
[335514281,1724296257061,-500.0,0.00020846,7]
[335514283,1724296257074,-500.0,0.00020846,7]
[335514285,1724296257085,-500.0,0.00020846,7]
[335514287,1724296257095,-500.0,0.00020846,7]
[335514289,1724296257106,-297.09340798,0.00020846,7]
[335514291,1724296257118,-540.59189052,0.00020846,7]
[335514293,1724296257128,-500.0,0.00020846,7]
[335514294,1724296257138,-500.0,0.00020846,7]
[335514296,1724296257152,-500.0,0.00020846,7]
[335514297,1724296257162,-500.0,0.00020846,7]
[335514299,1724296257172,-500.0,0.00020846,7]
[335514300,1724296257182,-508.33,0.00020846,7]
[335514302,1724296257192,-341.29201942,0.00020846,7]
[335514304,1724296257204,-501.89510099,0.00020846,7]
[335514305,1724296257214,-171.50287464,0.00020846,7]
[335514307,1724296257224,-500.0,0.00020846,7]
[335514308,1724296257234,-500.0,0.00020846,7]
[335514310,1724296257244,-500.0,0.00020846,7]
[335514312,1724296257254,-500.0,0.00020846,7]
[335514313,1724296257265,-501.23998699,0.00020846,7]
[335514315,1724296257275,-500.0,0.00020846,7]
[335514317,1724296257285,-503.96387711,0.00020846,7]
[335514318,1724296257295,-500.0,0.00020846,7]
[335514320,1724296257305,-500.0,0.00020846,7]
[335514321,1724296257315,-500.0,0.00020846,7]
[335514323,1724296257326,-500.0,0.00020846,7]
[335514325,1724296257337,-500.0,0.00020846,7]
[335514326,1724296257348,-500.0,0.00020846,7]
[335514328,1724296257358,-500.0,0.00020846,7]
[335514330,1724296257369,-500.0,0.00020846,7]
[335514331,1724296257380,-500.0,0.00020846,7]
[335514333,1724296257391,-254.90359516,0.00020846,7]
[335514335,1724296257402,-800.22,0.00020846,7]
[335514336,1724296257413,-500.0,0.00020846,7]
[335514338,1724296257423,-500.0,0.00020846,7]
[335514340,1724296257434,-500.0,0.00020846,7]
[335514342,1724296257445,-500.0,0.00020846,7]
[335514343,1724296257455,-181.49146317,0.00020846,7]
[335514345,1724296257465,-500.0,0.00020846,7]
[335514347,1724296257477,-500.0,0.00020846,7]
[335514348,1724296257487,-500.0,0.00020846,7]
[335514350,1724296257497,-500.0,0.00020846,7]
[335514352,1724296257508,-534.0258323,0.00020846,7]
[335514353,1724296257518,-498.59096403,0.00020846,7]
[335514355,1724296257528,-500.0,0.00020846,7]
[335514357,1724296257539,-500.0,0.00020846,7]
[335514359,1724296257549,-500.0,0.00020846,7]
[335514360,1724296257560,-523.63,0.00020846,7]
[335514362,1724296257572,-641.89,0.00020846,7]
[335514364,1724296257583,-500.0,0.00020846,7]
[335514366,1724296257594,-500.0,0.00020846,7]
[335514367,1724296257605,-618.82973181,0.00020846,7]
[335514369,1724296257616,-676.0,0.00020846,7]
[335514371,1724296257627,-500.0,0.00020846,7]
[335514372,1724296257638,-500.0,0.00020847,7]
[335514374,1724296257650,-504.38744649,0.00020847,7]
[335514376,1724296257661,-500.0,0.00020847,7]
[335514378,1724296257672,-500.0,0.00020847,7]
[335514379,1724296257682,-500.0,0.00020847,7]
[335514381,1724296257693,-153.0,0.00020877,2]
[335514383,1724296257703,-919.0939144,0.00020877,2]
[335514385,1724296257713,-153.1570436,0.00020877,2]
[335514386,1724296257723,-153.0,0.00020877,2]
[335514388,1724296257733,-153.0,0.00020877,2]
[335514390,1724296257744,-153.0,0.00020877,2]
[335514391,1724296257754,-433.71,0.000209,2]
[335514393,1724296257765,-223.83,0.000209,2]
[335514395,1724296257775,-306.0,0.00021082,2]
[335514396,1724296257786,-500.0,0.0002113,7]
[335514398,1724296257796,-500.0,0.0002113,2]
[335514400,1724296257806,-500.0,0.0002113,7]
[335514402,1724296257816,-516.97603703,0.0002113,7]
[335514403,1724296257827,-500.0,0.0002113,7]
[335514405,1724296257837,-507.13,0.00021131,7]
[335514407,1724296257846,-562.87,0.00021131,7]
[335514408,1724296257856,-500.0,0.00021131,7]
[335514410,1724296257866,-2565.84,0.00021131,7]
[335514412,1724296257876,-758.41,0.00021131,7]
[335514413,1724296257886,-500.0,0.00021131,7]
[335514415,1724296257898,-10750.61,0.00021131,7]
[335514417,1724296257908,-874.83,0.00021131,7]
[335514418,1724296257917,-953.94,0.00021131,7]
[335514420,1724296257927,-1029.46,0.00021131,7]
[335514422,1724296257937,-500.0,0.00021131,7]
[335514423,1724296257947,-500.0,0.00021131,7]
[335514425,1724296257957,-922.98,0.00021131,7]
[335514427,1724296257967,-500.0,0.00021131,7]
[335514429,1724296257977,-847.4,0.00021131,7]
[335514430,1724296257989,-3611.27,0.00021131,7]
[335514431,1724296257999,-2513.14,0.00021131,7]
[335514432,1724296258009,-500.0,0.00021141,7]
[335514433,1724296258019,-500.0,0.00021141,7]
[335514434,1724296258031,-5929.17,0.00021141,7]
[335514435,1724296258042,-500.0,0.00021141,7]
[335514436,1724296258054,-4213.85,0.00021141,7]
[335514437,1724296258064,-1276.23,0.00021141,7]
[335514438,1724296258081,-500.0,0.00021141,7]
[335514439,1724296258091,-10870.68,0.00021141,7]
[335514441,1724296258100,-500.0,0.00021141,7]
[335514442,1724296258110,-23123.91,0.00021141,7]
[335514444,1724296258121,-500.0,0.00021141,7]
[335514446,1724296258131,-500.0,0.00021141,7]
[335514448,1724296258143,-2291.12,0.00021141,7]
[335514450,1724296258154,-500.0,0.00021141,7]
[335514452,1724296258164,-2891.63,0.00021141,7]
[335514454,1724296258174,-500.0,0.00021141,7]
[335514456,1724296258184,-2866.8,0.00021141,7]
[335514458,1724296258194,-1200.55,0.00021141,7]
[335514460,1724296258205,-659.04,0.00021141,7]
[335514462,1724296258216,-500.0,0.00021141,7]
[335514464,1724296258226,-1808.83,0.00021141,7]
[335514466,1724296258236,-3415.01,0.00021141,7]
[335514468,1724296258246,-500.0,0.00021141,7]
[335514471,1724296258257,-2046.98,0.00021141,7]
[335514473,1724296258267,-500.0,0.00021141,7]
[335514475,1724296258278,-500.0,0.00021141,7]
[335514497,1724296258291,-500.0,0.00021141,7]
[335514500,1724296258506,-500.0,0.00021141,7]
[335514502,1724296258516,-762.37,0.00021141,7]
[335514504,1724296258525,-500.0,0.00021141,7]
[335514506,1724296258535,-500.0,0.00021141,7]
[335514508,1724296258544,-2391.28,0.00021141,7]
[335514510,1724296258554,-500.0,0.00021141,7]
[335514512,1724296258564,-500.0,0.00021141,7]
[335514514,1724296258573,-572.73510506,0.00021142,7]
[335514516,1724296258584,-500.0,0.00021142,7]
[335514518,1724296258593,-2845.6,0.00021142,7]
[335514520,1724296258603,-519.63,0.00021142,7]
[335514522,1724296258612,-500.0,0.00021142,7]
[335514524,1724296258622,-500.0,0.00021142,7]
[335514526,1724296258631,-500.0,0.00021142,7]
[335514528,1724296258642,-359.84290112,0.00021142,7]
[335514530,1724296258652,-500.0,0.00021142,7]
[335514532,1724296258661,-500.0,0.00021142,7]
[335514534,1724296258671,-374.92301517,0.00021142,7]
[335514536,1724296258680,-508.84375178,0.00021142,7]
[335514538,1724296258689,-500.0,0.00021142,7]
[335514540,1724296258698,-191.84481614,0.00021142,7]
[335514568,1724296258935,-308.15518386,0.00021142,7]
[335514569,1724296258945,-500.0,0.00021142,7]
[335514571,1724296258955,-526.95,0.00021142,7]
[335514573,1724296258965,-500.0,0.00021142,7]
[335514576,1724296258975,-620.97,0.00021142,7]
[335514578,1724296258984,-500.0,0.00021142,7]
[335514580,1724296258993,-1131.71,0.00021142,7]
[335514582,1724296259003,-500.0,0.00021142,7]
[335514583,1724296259012,-500.0,0.00021142,7]
[335514586,1724296259022,-500.0,0.00021142,7]
[335514588,1724296259032,-500.0,0.00021142,7]
[335514590,1724296259041,-500.0,0.00021142,7]
[335514592,1724296259050,-500.0,0.00021142,7]
[335514594,1724296259060,-127.14481614,0.00021142,7]
[335514596,1724296259076,-535.04518386,0.00021142,7]
[335514598,1724296259085,-216.65620265,0.00021142,7]
[335514638,1724296259454,-283.873353,0.00019498,7]
[335514675,1724296259830,-216.126647,0.00019498,7]
[335514676,1724296259840,-517.02356333,0.00020046,7]
[335514677,1724296259849,-500.0,0.0002113,7]
[335514678,1724296259859,-283.34379735,0.00021142,7]
[335514679,1724296259868,-200.0,0.00021142,7]
[335514680,1724296259878,-500.0,0.00021142,7]
[335514682,1724296259887,-500.0,0.00021142,7]
[335514684,1724296259898,-556.41,0.00021142,7]
[335514687,1724296259908,-500.0,0.00021142,7]
[335514689,1724296259917,-500.0,0.00021142,7]
[335514691,1724296259926,-500.0,0.00021142,7]
[335514693,1724296259936,-500.0,0.00021142,7]
[335514695,1724296259945,-2444.79,0.00021142,7]
[335514696,1724296259955,-500.0,0.00021142,7]
[335514698,1724296259964,-500.0,0.00021142,7]
[335514701,1724296259974,-522.37,0.00021142,7]
[335514702,1724296259983,-500.0,0.00021142,7]
[335514705,1724296259993,-500.0,0.00021142,7]
[335514706,1724296260002,-586.8,0.00021142,7]
[335514708,1724296260012,-500.0,0.00021142,7]
[335514710,1724296260021,-500.0,0.00021142,7]
[335514712,1724296260031,-500.0,0.00021142,7]
[335514715,1724296260041,-514.87637696,0.00021142,7]
[335514717,1724296260050,-500.0,0.00021142,7]
[335514719,1724296260060,-500.0,0.00021142,7]
[335514721,1724296260072,-653.23,0.00021142,7]
[335514723,1724296260082,-500.0,0.00021142,7]
[335514725,1724296260091,-566.17,0.00021142,7]
[335514726,1724296260100,-664.45,0.00021142,7]
[335514727,1724296260110,-795.32,0.00021142,7]
[335514728,1724296260120,-579.54,0.00021142,7]
[335514729,1724296260129,-500.0,0.00021142,7]
[335514730,1724296260139,-696.53,0.00021142,7]
[335514731,1724296260153,-500.0,0.00021142,7]
[335514732,1724296260162,-831.76,0.00021142,7]
[335514733,1724296260173,-500.0,0.00021142,7]
[335514734,1724296260183,-539.58,0.00021142,7]
[335514735,1724296260193,-500.0,0.00021142,7]
[335514736,1724296260204,-500.0,0.00021142,7]
[335514737,1724296260213,-505.94046364,0.00021142,7]
[335514738,1724296260223,-853.45,0.00021142,7]
[335514739,1724296260233,-505.41387806,0.00021142,7]
[335514740,1724296260243,-500.0,0.00021142,7]
[335514741,1724296260253,-758.51,0.00021142,7]
[335514742,1724296260263,-500.0,0.00021142,7]
[335514743,1724296260272,-500.0,0.00021142,7]
[335514744,1724296260281,-500.0,0.00021142,7]
[335514745,1724296260291,-611.74,0.00021142,7]
[335514746,1724296260300,-500.0,0.00021142,7]
[335514747,1724296260310,-500.0,0.00021142,7]
[335514748,1724296260320,-500.0,0.00021142,7]
[335514749,1724296260329,-500.0,0.00021142,7]
[335514750,1724296260339,-500.0,0.00021142,7]
[335514751,1724296260350,-500.0,0.00021142,7]
[335514752,1724296260359,-504.73261776,0.00021142,7]
[335514753,1724296260369,-603.41574783,0.00021142,7]
[335514754,1724296260378,-500.0,0.00021142,7]
[335514755,1724296260388,-500.0,0.00021142,7]
[335514756,1724296260399,-500.0,0.00021142,7]
[335514757,1724296260409,-555.62,0.00021142,7]
[335514758,1724296260418,-500.0,0.00021142,7]
[335514759,1724296260429,-532.86,0.00021142,7]
[335514760,1724296260438,-520.17,0.00021142,7]
[335514761,1724296260450,-500.0,0.00021142,7]
[335514763,1724296260461,-500.0,0.00021142,7]
[335514766,1724296260472,-500.0,0.00021142,7]
[335514768,1724296260482,-500.0,0.00021142,7]
[335514770,1724296260492,-352.1803668,0.00021142,7]
[335514772,1724296260504,-500.0,0.00021142,7]
[335514773,1724296260513,-500.0,0.00021142,7]
[335514774,1724296260524,-500.0,0.00021142,7]
[335514775,1724296260535,-500.0,0.00021142,7]
[335514776,1724296260545,-990.24,0.00021142,7]
[335514777,1724296260556,-500.0,0.00021142,7]
[335514778,1724296260567,-500.0,0.00021142,7]
[335514779,1724296260576,-813.09,0.00021142,7]
[335514780,1724296260587,-500.0,0.00021142,7]
[335514781,1724296260644,-500.0,0.00021142,7]
[335514782,1724296260656,-500.0,0.00021142,7]
[335514783,1724296260667,-500.0,0.00021142,7]
[335514784,1724296260676,-500.0,0.00021142,7]
[335514785,1724296260686,-500.0,0.00021142,7]
[335514786,1724296260696,-1340.95,0.00021142,7]
[335514787,1724296260707,-500.0,0.00021142,7]
[335514788,1724296260717,-500.0,0.00021142,7]
[335514789,1724296260727,-2046.47,0.00021142,7]
[335514790,1724296260737,-805.05118051,0.00021142,7]
[335514792,1724296260747,-500.0,0.00021142,7]
[335514794,1724296260756,-547.65091328,0.00021142,7]
[335514796,1724296260765,-500.0,0.00021142,7]